fUSD/lending_fUSD_20240526
["ID","MTS","AMOUNT","RATE_DAILY","PERIOD"]
[328006253,1716766357118,-1324.66,0.0003315,4]
[328006254,1716766357128,-716.14,0.0003315,4]
[328006255,1716766357138,-1231.06,0.0003315,4]
[328006256,1716766357148,-12518.24,0.0003315,4]
[328006257,1716766357157,-808.36,0.0003315,4]
[328006258,1716766357167,-648.03,0.0003315,4]
[328006259,1716766357176,-1164.95,0.0003315,4]
[328006260,1716766357186,-2740.82,0.0003315,4]
[328006261,1716766357196,-595.23,0.0003315,4]
[328006262,1716766357207,-566.07,0.0003315,4]
[328006263,1716766357217,-745.74,0.0003315,4]
[328006264,1716766357226,-563.58,0.0003315,4]
[328006265,1716766357236,-1642.45,0.0003315,4]
[328006266,1716766357246,-538.9,0.0003315,4]
[328006267,1716766357260,-5551.36,0.0003315,4]
[328006268,1716766357271,-500.0,0.0003315,4]
[328006269,1716766357281,-593.26,0.0003315,4]
[328006270,1716766357291,-972.91,0.0003315,4]
[328006271,1716766357302,-561.18,0.0003315,4]
[328006272,1716766357312,-575.29,0.0003315,4]
[328006273,1716766357321,-881.68,0.0003315,4]
[328006274,1716766357332,-1259.79,0.0003315,4]
[328006275,1716766357342,-605.76,0.0003315,4]
[328006276,1716766357354,-3536.07,0.0003315,4]
[328006277,1716766357364,-398.88,0.0003315,4]
[328006278,1716766357374,-850.48,0.0003315,4]
[328006279,1716766357384,-826.83,0.0003315,4]
[328006280,1716766357394,-1946.87,0.0003315,4]
[328006281,1716766357404,-1471.62,0.0003315,4]
[328006282,1716766357414,-1299.03,0.0003315,4]
[328006283,1716766357425,-874.0,0.0003315,4]
[328006284,1716766357436,-654.22,0.0003315,4]
[328006285,1716766357446,-509.25,0.0003315,4]
[328006286,1716766357456,-777.17,0.0003315,4]
[328006287,1716766357467,-1565.29,0.0003315,4]
[328006288,1716766357476,-855.17,0.0003315,4]
[328006289,1716766357486,-701.7,0.0003315,4]
[328006290,1716766357496,-8290.14,0.0003315,4]
[328006291,1716766357506,-761.08,0.0003315,4]
[328006292,1716766357516,-599.5,0.0003315,4]
[328006293,1716766357527,-643.13,0.0003315,4]
[328006294,1716766357537,-4278.59,0.0003315,4]
[328006295,1716766357547,-6703.51,0.0003315,4]
[328006296,1716766357556,-1138.56,0.0003315,4]
[328006297,1716766357566,-880.9,0.0003315,4]
[328006298,1716766357576,-772.3,0.0003315,4]
[328006299,1716766357585,-1237.34,0.0003315,4]
[328006300,1716766357595,-891.81,0.0003315,4]
[328006301,1716766357605,-588.35,0.0003315,4]
[328006302,1716766357615,-500.0,0.0003315,4]
[328006303,1716766357625,-930.12,0.0003315,4]
[328006304,1716766357635,-723.38,0.0003315,4]
[328006305,1716766357646,-570.4,0.0003315,4]
[328006306,1716766357656,-3019.87,0.0003315,4]
[328006307,1716766357666,-500.0,0.0003315,4]
[328006308,1716766357676,-737.24,0.0003315,4]
[328006309,1716766357686,-500.0,0.0003315,4]
[328006310,1716766357696,-3353.66,0.0003315,4]
[328006311,1716766357705,-1655.73,0.0003315,4]
[328006312,1716766357715,-368.05,0.0003315,4]
[328006313,1716766357724,-557.95,0.0003315,4]
[328006314,1716766357734,-628.01,0.0003315,4]
[328006315,1716766357744,-1130.95,0.0003315,4]
[328006316,1716766357754,-2845.63,0.0003315,4]
[328006317,1716766357764,-1950.47,0.0003315,4]
[328006318,1716766357775,-902.66,0.0003315,4]
[328006319,1716766357784,-786.5,0.0003315,4]
[328006320,1716766357794,-1344.42,0.0003315,4]
[328006321,1716766357803,-7054.88,0.0003315,4]
[328006322,1716766357813,-1190.17,0.0003315,4]
[328006323,1716766357823,-693.7,0.0003315,4]
[328006324,1716766357832,-792.19,0.0003315,4]
[328006325,1716766357842,-753.14,0.0003315,4]
[328006326,1716766357851,-1616.54,0.0003315,4]
[328006327,1716766357861,-550.82,0.0003315,4]
[328006328,1716766357870,-735.26,0.0003315,4]
[328006329,1716766357880,-1672.85,0.0003315,4]
[328006330,1716766357889,-1478.27,0.0003315,4]
[328006331,1716766357899,-1055.1,0.0003315,4]
[328006332,1716766357909,-564.5,0.0003315,4]
[328006333,1716766357919,-1222.14,0.0003315,4]
[328006334,1716766357929,-1219.52,0.0003315,4]
[328006335,1716766357939,-2006.47,0.0003315,4]
[328006336,1716766357949,-860.6,0.0003315,4]
[328006337,1716766357959,-1285.66,0.0003315,4]
[328006338,1716766357969,-1245.87,0.0003315,4]
[328006339,1716766357978,-500.0,0.0003315,4]
[328006340,1716766357988,-1054.38,0.0003315,4]
[328006341,1716766357997,-686.51,0.0003315,4]
[328006342,1716766358007,-2090.3,0.0003315,4]
[328006343,1716766358017,-660.84,0.0003315,4]
[328006344,1716766358027,-1241.08,0.0003315,4]
[328006345,1716766358038,-1457.46,0.0003315,4]
[328006346,1716766358047,-1622.1,0.0003315,4]
[328006347,1716766358058,-519.03,0.0003315,4]
[328006348,1716766358068,-767.41,0.0003315,4]
[328006349,1716766358078,-540.35,0.0003315,4]
[328006350,1716766358088,-535.71,0.0003315,4]
[328006351,1716766358097,-754.4,0.0003315,4]
[328006352,1716766358107,-1446.35,0.0003315,4]
[328006353,1716766358119,-3162.97,0.0003315,4]
[328006354,1716766358130,-656.74,0.0003315,4]
[328006355,1716766358142,-1154.85,0.0003315,4]
[328006356,1716766358153,-698.24,0.0003315,4]
[328006357,1716766358164,-1334.79,0.0003315,4]
[328006358,1716766358176,-962.47,0.0003315,4]
[328006359,1716766358186,-1228.33,0.0003315,4]
[328006360,1716766358196,-152.0,0.00033325,3]
[328006361,1716766358206,-323.08380018,0.00033374,2]
[328006362,1716766358216,-191.88,0.00033396,2]
[328006363,1716766358226,-226.14,0.00033396,2]
[328006364,1716766358236,-2188.02281065,0.00033423,4]
[328006365,1716766358246,-10945.59975113,0.00033423,4]
[328006366,1716766358258,-944.44,0.00033424,4]
[328006367,1716766358268,-791.42,0.00033424,4]
[328006368,1716766358280,-822.31,0.00033424,4]
[328006369,1716766358290,-620.76,0.00033424,4]
[328006370,1716766358300,-576.1,0.00033424,4]
[328006371,1716766358311,-697.5,0.00033424,4]
[328006372,1716766358321,-547.78,0.00033424,4]
[328006373,1716766358331,-745.11,0.00033424,4]
[328006374,1716766358344,-548.59,0.00033424,4]
[328006375,1716766358355,-521.76,0.00033424,4]
[328006376,1716766358365,-546.32,0.00033424,4]
[328006377,1716766358375,-503.3,0.00033424,4]
[328006378,1716766358385,-513.73,0.00033424,4]
[328006379,1716766358395,-1125.41,0.00033424,4]
[328006380,1716766358404,-534.62,0.00033424,4]
[328006381,1716766358414,-540.75,0.00033424,4]
[328006382,1716766358424,-500.0,0.00033424,4]
[328006383,1716766358435,-1235.19,0.00033424,4]
[328006384,1716766358444,-729.16,0.00033424,4]
[328006385,1716766358454,-864.88,0.00033424,4]
[328006386,1716766358464,-963.86,0.00033424,4]
[328006387,1716766358474,-874.71,0.00033424,4]
[328006388,1716766358483,-835.43,0.00033424,4]
[328006389,1716766358494,-529.68,0.00033424,4]
[328006390,1716766358504,-1126.6,0.00033424,4]
[328006391,1716766358513,-1097.89,0.00033424,4]
[328006392,1716766358523,-866.64,0.00033424,4]
[328006393,1716766358533,-524.51,0.00033424,4]
[328006394,1716766358543,-213.83,0.00033424,4]
[328006395,1716766358553,-754.22,0.00033424,4]
[328006396,1716766358562,-1051.14,0.00033424,4]
[328006397,1716766358572,-500.0,0.00033424,4]
[328006398,1716766358582,-500.0,0.00033424,4]
[328006399,1716766358592,-1051.14,0.00033424,4]
[328006400,1716766358602,-174.41,0.00033424,4]
[328006401,1716766358612,-1380.33,0.00033424,4]
[328006402,1716766358622,-828.3,0.00033424,4]
[328006403,1716766358632,-832.97,0.00033424,4]
[328006404,1716766358642,-716.96,0.00033424,4]
[328006405,1716766358652,-620.61,0.00033424,4]
[328006406,1716766358662,-616.66,0.00033424,4]
[328006407,1716766358672,-179.56,0.00033424,4]
[328006408,1716766358682,-808.3,0.00033424,4]
[328006409,1716766358693,-1217.19,0.00033424,4]
[328006410,1716766358704,-520.62,0.00033424,4]
[328006411,1716766358715,-1635.18,0.00033424,4]
[328006412,1716766358726,-988.23,0.00033424,4]
[328006413,1716766358735,-951.24,0.00033424,4]
[328006414,1716766358745,-4763.6,0.00033424,4]
[328006415,1716766358756,-1408.55,0.00033424,4]
[328006416,1716766358767,-773.49,0.00033424,4]
[328006417,1716766358778,-1097.24,0.00033424,4]
[328006418,1716766358787,-1770.78,0.00033424,4]
[328006419,1716766359006,-1324.66,0.00033424,4]
[328006420,1716766359023,-716.14,0.00033424,4]
[328006421,1716766359033,-1231.06,0.00033424,4]
[328006422,1716766359043,-12518.24,0.00033424,4]
[328006423,1716766359052,-808.36,0.00033424,4]
[328006424,1716766359063,-648.03,0.00033424,4]
[328006425,1716766359073,-1164.95,0.00033424,4]
[328006426,1716766359083,-2740.82,0.00033424,4]
[328006427,1716766359092,-595.23,0.00033424,4]
[328006428,1716766359102,-566.07,0.00033424,4]
[328006429,1716766359111,-745.74,0.00033424,4]
[328006430,1716766359121,-563.58,0.00033424,4]
[328006431,1716766359131,-1642.45,0.00033424,4]
[328006432,1716766359141,-538.9,0.00033424,4]
[328006433,1716766359150,-5551.36,0.00033424,4]
[328006434,1716766359160,-500.0,0.00033424,4]
[328006435,1716766359170,-593.26,0.00033424,4]
[328006436,1716766359179,-972.91,0.00033424,4]
[328006437,1716766359189,-561.18,0.00033424,4]
[328006438,1716766359199,-575.29,0.00033424,4]
[328006439,1716766359209,-881.68,0.00033424,4]
[328006440,1716766359219,-1259.79,0.00033424,4]
[328006441,1716766359229,-605.76,0.00033424,4]
[328006442,1716766359239,-3536.07,0.00033424,4]
[328006443,1716766359249,-850.48,0.00033424,4]
[328006444,1716766359262,-826.83,0.00033424,4]
[328006445,1716766359272,-1946.87,0.00033424,4]
[328006446,1716766359283,-1471.62,0.00033424,4]
[328006447,1716766359293,-1299.03,0.00033424,4]
[328006448,1716766359305,-874.0,0.00033424,4]
[328006449,1716766359314,-654.22,0.00033424,4]
[328006450,1716766359324,-509.25,0.00033424,4]
[328006451,1716766359337,-777.17,0.00033424,4]
[328006452,1716766359347,-1565.29,0.00033424,4]
[328006453,1716766359358,-855.17,0.00033424,4]
[328006454,1716766359368,-701.7,0.00033424,4]
[328006455,1716766359378,-8290.14,0.00033424,4]
[328006456,1716766359388,-761.08,0.00033424,4]
[328006457,1716766359399,-599.5,0.00033424,4]
[328006458,1716766359410,-643.13,0.00033424,4]
[328006459,1716766359420,-4278.59,0.00033424,4]
[328006460,1716766359430,-6703.51,0.00033424,4]
[328006461,1716766359440,-1138.56,0.00033424,4]
[328006462,1716766359450,-880.9,0.00033424,4]
[328006463,1716766359460,-1237.34,0.00033424,4]
[328006464,1716766359469,-772.3,0.00033424,4]
[328006465,1716766359480,-891.81,0.00033424,4]
[328006466,1716766359490,-588.35,0.00033424,4]
[328006467,1716766359501,-500.0,0.00033424,4]
[328006468,1716766359511,-930.12,0.00033424,4]
[328006469,1716766359521,-723.38,0.00033424,4]
[328006470,1716766359532,-3019.87,0.00033424,4]
[328006471,1716766359542,-258.98,0.00033424,4]
[328006472,1716766359552,-737.24,0.00033424,4]
[328006473,1716766359562,-500.0,0.00033424,4]
[328006474,1716766359572,-3353.66,0.00033424,4]
[328006475,1716766359582,-1655.73,0.00033424,4]
[328006476,1716766359592,-557.95,0.00033424,4]
[328006477,1716766359602,-628.01,0.00033424,4]
[328006478,1716766359611,-1130.95,0.00033424,4]
[328006479,1716766359621,-2845.63,0.00033424,4]
[328006480,1716766359631,-1950.47,0.00033424,4]
[328006481,1716766359640,-902.66,0.00033424,4]
[328006482,1716766359650,-786.5,0.00033424,4]
[328006483,1716766359660,-7054.88,0.00033424,4]
[328006484,1716766359670,-1344.42,0.00033424,4]
[328006485,1716766359680,-1190.17,0.00033424,4]
[328006486,1716766359690,-693.7,0.00033424,4]
[328006487,1716766359700,-792.19,0.00033424,4]
[328006488,1716766359710,-753.14,0.00033424,4]
[328006489,1716766359720,-1616.54,0.00033424,4]
[328006490,1716766359730,-735.26,0.00033424,4]
[328006491,1716766359740,-1672.85,0.00033424,4]
[328006492,1716766359750,-1478.27,0.00033424,4]
[328006493,1716766359760,-1055.1,0.00033424,4]
[328006494,1716766359770,-564.5,0.00033424,4]
[328006495,1716766359780,-1222.14,0.00033424,4]
[328006496,1716766359791,-1219.52,0.00033424,4]
[328006497,1716766359800,-2006.47,0.00033424,4]
[328006498,1716766359811,-860.6,0.00033424,4]
[328006499,1716766359821,-1285.66,0.00033424,4]
[328006500,1716766359831,-1245.87,0.00033424,4]
[328006501,1716766359841,-500.0,0.00033424,4]
[328006502,1716766359851,-1054.38,0.00033424,4]
[328006503,1716766359860,-686.51,0.00033424,4]
[328006504,1716766359870,-2090.3,0.00033424,4]
[328006505,1716766359880,-660.84,0.00033424,4]
[328006506,1716766359890,-1241.08,0.00033424,4]
[328006507,1716766359899,-1457.46,0.00033424,4]
[328006508,1716766359909,-1622.1,0.00033424,4]
[328006509,1716766359918,-519.03,0.00033424,4]
[328006510,1716766359928,-767.41,0.00033424,4]
[328006511,1716766359937,-540.35,0.00033424,4]
[328006512,1716766359946,-535.71,0.00033424,4]
[328006513,1716766359956,-754.4,0.00033424,4]
[328006514,1716766359966,-1446.35,0.00033424,4]
[328006515,1716766359976,-3162.97,0.00033424,4]
[328006516,1716766359987,-656.74,0.00033424,4]
[328006517,1716766359996,-1154.85,0.00033424,4]
[328006518,1716766360006,-698.24,0.00033424,4]
[328006519,1716766360016,-962.47,0.00033424,4]
[328006520,1716766360026,-1228.33,0.00033424,4]
[328006521,1716766360035,-1334.79,0.00033424,4]
[328006522,1716766360046,-241.38809407,0.00033582,10]
[328006523,1716766360056,-1214.89532928,0.00033599,2]
[328006524,1716766360066,-182.4,0.00033661,120]
[328006525,1716766360077,-538.44,0.00033687,2]
[328006526,1716766360087,-365.96,0.0003369,120]
[328006527,1716766360096,-944.61,0.00033698,4]
[328006528,1716766360106,-791.47,0.00033698,4]
[328006529,1716766360116,-822.49,0.00033698,4]
[328006530,1716766360126,-620.86,0.00033698,4]
[328006531,1716766360135,-576.28,0.00033698,4]
[328006532,1716766360145,-697.57,0.00033698,4]
[328006533,1716766360155,-547.88,0.00033698,4]
[328006534,1716766360164,-745.21,0.00033698,4]
[328006535,1716766360175,-548.67,0.00033698,4]
[328006536,1716766360184,-521.8,0.00033698,4]
[328006537,1716766360194,-546.42,0.00033698,4]
[328006538,1716766360204,-503.38,0.00033698,4]
[328006539,1716766360215,-513.92,0.00033698,4]
[328006540,1716766360225,-1125.41,0.00033698,4]
[328006541,1716766360236,-534.64,0.00033698,4]
[328006542,1716766360246,-540.85,0.00033698,4]
[328006543,1716766360256,-435.06,0.00033698,4]
[328006544,1716766360271,-1235.2,0.00033698,4]
[328006545,1716766360283,-729.32,0.00033698,4]
[328006546,1716766360293,-864.93,0.00033698,4]
[328006547,1716766360305,-964.0,0.00033698,4]
[328006548,1716766360315,-874.72,0.00033698,4]
[328006549,1716766360324,-835.62,0.00033698,4]
[328006550,1716766360335,-529.75,0.00033698,4]
[328006551,1716766360346,-1126.61,0.00033698,4]
[328006552,1716766360355,-1097.97,0.00033698,4]
[328006553,1716766360365,-866.67547108,0.00033698,4]
[328006554,1716766360376,-524.55,0.00033698,4]
[328006555,1716766360386,-754.26,0.00033698,4]
[328006556,1716766360396,-1051.24,0.00033698,4]
[328006557,1716766360406,-217.46,0.00033698,4]
[328006558,1716766360417,-283.85,0.00033698,4]
[328006559,1716766360427,-1051.15,0.00033698,4]
[328006560,1716766360437,-1380.36,0.00033698,4]
[328006561,1716766360448,-828.51,0.00033698,4]
[328006562,1716766360457,-833.13,0.00033698,4]
[328006563,1716766360468,-717.11,0.00033698,4]
[328006564,1716766360478,-616.79,0.00033698,4]
[328006565,1716766360488,-179.74,0.00033698,4]
[328006566,1716766360498,-808.48,0.00033698,4]
[328006567,1716766360509,-1217.29,0.00033698,4]
[328006568,1716766360519,-520.76,0.00033698,4]
[328006569,1716766360528,-1635.22,0.00033698,4]
[328006570,1716766360538,-988.44,0.00033698,4]
[328006571,1716766360548,-951.24,0.00033698,4]
[328006572,1716766360559,-4763.7871,0.00033698,4]
[328006573,1716766360570,-1408.67,0.00033698,4]
[328006574,1716766360580,-773.55,0.00033698,4]
[328006575,1716766360590,-1097.35,0.00033698,4]
[328006576,1716766360600,-1770.83,0.00033698,4]
[328006577,1716766360611,-1324.7,0.00033698,4]
[328006578,1716766360621,-716.36,0.00033698,4]
[328006579,1716766360631,-1231.17,0.00033698,4]
[328006580,1716766360642,-12518.28,0.00033698,4]
[328006581,1716766360651,-808.43,0.00033698,4]
[328006582,1716766360662,-648.05,0.00033698,4]
[328006583,1716766360672,-1165.07,0.00033698,4]
[328006584,1716766360683,-2740.97,0.00033698,4]
[328006585,1716766360692,-595.23,0.00033698,4]
[328006586,1716766360702,-566.19,0.00033698,4]
[328006587,1716766360712,-563.8025,0.00033698,4]
[328006588,1716766360722,-745.78,0.00033698,4]
[328006589,1716766360733,-1642.54,0.00033698,4]
[328006590,1716766360742,-539.03,0.00033698,4]
[328006591,1716766360752,-5551.5,0.00033698,4]
[328006592,1716766360762,-214.78,0.00033698,4]
[328006593,1716766360772,-593.47,0.00033698,4]
[328006594,1716766360784,-972.95,0.00033698,4]
[328006595,1716766360794,-561.22,0.00033698,4]
[328006596,1716766360804,-575.45,0.00033698,4]
[328006597,1716766360814,-881.91,0.00033698,4]
[328006598,1716766360824,-1259.93,0.00033698,4]
[328006599,1716766360833,-605.84,0.00033698,4]
[328006600,1716766360843,-3536.16,0.00033698,4]
[328006601,1716766360853,-850.64,0.00033698,4]
[328006602,1716766360862,-826.9,0.00033698,4]
[328006603,1716766360872,-1471.78,0.00033698,4]
[328006604,1716766360882,-1946.96000001,0.00033698,4]
[328006605,1716766360892,-1299.07,0.00033698,4]
[328006606,1716766360901,-874.1,0.00033698,4]
[328006607,1716766360911,-654.36,0.00033698,4]
[328006608,1716766360920,-509.32,0.00033698,4]
[328006609,1716766360929,-777.37,0.00033698,4]
[328006610,1716766360939,-1565.43,0.00033698,4]
[328006611,1716766360948,-855.22,0.00033698,4]
[328006612,1716766360958,-701.77,0.00033698,4]
[328006613,1716766360967,-8290.24,0.00033698,4]
[328006614,1716766360977,-761.29,0.00033698,4]
[328006615,1716766360986,-599.69564034,0.00033698,4]
[328006616,1716766360996,-643.36,0.00033698,4]
[328006617,1716766361005,-4278.78,0.00033698,4]
[328006618,1716766361015,-6703.58,0.00033698,4]
[328006619,1716766361024,-1138.69,0.00033698,4]
[328006620,1716766361034,-881.12,0.00033698,4]
[328006621,1716766361042,-1237.34,0.00033698,4]
[328006622,1716766361052,-772.49,0.00033698,4]
[328006623,1716766361061,-891.82,0.00033698,4]
[328006624,1716766361070,-588.49,0.00033698,4]
[328006625,1716766361080,-425.84,0.00033698,4]
[328006626,1716766361089,-930.26,0.00033698,4]
[328006627,1716766361098,-723.61,0.00033698,4]
[328006628,1716766361107,-3020.08,0.00033698,4]
[328006629,1716766361117,-737.41,0.00033698,4]
[328006630,1716766361126,-271.02,0.00033698,4]
[328006631,1716766361135,-3353.81,0.00033698,4]
[328006632,1716766361144,-1655.85,0.00033698,4]
[328006633,1716766361153,-628.24,0.00033698,4]
[328006634,1716766361162,-558.1,0.00033698,4]
[328006635,1716766361172,-1130.96062383,0.00033698,4]
[328006636,1716766361181,-2845.8,0.00033698,4]
[328006637,1716766361190,-1950.47,0.00033698,4]
[328006638,1716766361200,-902.7,0.00033698,4]
[328006639,1716766361210,-786.65,0.00033698,4]
[328006640,1716766361219,-7054.91,0.00033698,4]
[328006641,1716766361229,-1344.62,0.00033698,4]
[328006642,1716766361238,-1190.31,0.00033698,4]
[328006643,1716766361248,-693.78,0.00033698,4]
[328006644,1716766361261,-792.32021199,0.00033698,4]
[328006645,1716766361271,-753.33,0.00033698,4]
[328006646,1716766361281,-1616.59,0.00033698,4]
[328006647,1716766361291,-735.34,0.00033698,4]
[328006648,1716766361301,-1673.02,0.00033698,4]
[328006649,1716766361311,-1478.29,0.00033698,4]
[328006650,1716766361321,-1055.31,0.00033698,4]
[328006651,1716766361331,-564.56,0.00033698,4]
[328006652,1716766361342,-1222.33,0.00033698,4]
[328006653,1716766361352,-1219.73,0.00033698,4]
[328006654,1716766361361,-2006.69,0.00033698,4]
[328006655,1716766361371,-860.78,0.00033698,4]
[328006656,1716766361452,-1285.69,0.00033698,4]
[328006657,1716766361462,-1246.07,0.00033698,4]
[328006658,1716766361471,-343.66,0.00033698,4]
[328006659,1716766361481,-1054.5,0.00033698,4]
[328006660,1716766361491,-686.67,0.00033698,4]
[328006661,1716766361500,-2090.44,0.00033698,4]
[328006662,1716766361509,-660.91,0.00033698,4]
[328006663,1716766361518,-1241.15,0.00033698,4]
[328006664,1716766361527,-1457.46,0.00033698,4]
[328006665,1716766361537,-1622.27,0.00033698,4]
[328006666,1716766361547,-519.19,0.00033698,4]
[328006667,1716766361557,-767.62,0.00033698,4]
[328006668,1716766361566,-540.39,0.00033698,4]
[328006669,1716766361575,-535.87,0.00033698,4]
[328006670,1716766361584,-754.58,0.00033698,4]
[328006671,1716766361593,-1446.35,0.00033698,4]
[328006672,1716766361603,-3163.06,0.00033698,4]
[328006673,1716766361613,-656.84,0.00033698,4]
[328006674,1716766361622,-1155.0,0.00033698,4]
[328006675,1716766361631,-698.25,0.00033698,4]
[328006676,1716766361641,-87287.86821804,0.00033698,2]
[328006677,1716766361651,-87287.86821804,0.00033698,2]
[328006678,1716766361661,-87287.86821804,0.00033698,2]
[328006679,1716766361670,-87287.86821804,0.00033698,2]
[328006680,1716766361680,-87287.86821804,0.00033698,2]
[328006681,1716766361689,-228.52,0.00033884,2]
[328006682,1716766361698,-155.0,0.00034,4]
[328006683,1716766361708,-1005.18,0.0003402,2]
[328006684,1716766361718,-157.6,0.000341,2]
[328006685,1716766361727,-583.0,0.00034435,2]
[328006686,1716766361736,-728.0,0.00034435,2]
[328006687,1716766361745,-7002.26427376,0.0003444,4]
[328006688,1716766361755,-154.54,0.00034475,2]
[328006689,1716766361764,-1214.89532928,0.000345,2]
[328006690,1716766361773,-300.0,0.00034559,120]
[328006691,1716766361784,-155.0,0.00034788,4]
[328006692,1716766361793,-851.34718815,0.00034788,2]
[328006693,1716766361802,-583.0,0.0003479,2]
[328006694,1716766361812,-728.0,0.0003479,2]
[328006695,1716766361821,-985.50828,0.0003489,2]
[328006696,1716766361830,-1400.0,0.00035,2]
[328006697,1716766361839,-3268.13822903,0.00035,2]
[328006698,1716766361848,-2177.88455374,0.00035,10]
[328006699,1716766361857,-2000.0,0.00035,2]
[328006700,1716766361867,-2000.0,0.00035,2]
[328006701,1716766361876,-2000.0,0.00035,2]
[328006702,1716766361886,-2000.0,0.00035,2]
[328006703,1716766361895,-2000.0,0.00035,2]
[328006704,1716766361903,-2000.0,0.00035,2]
[328006705,1716766361913,-2000.0,0.00035,2]
[328006706,1716766361922,-2000.0,0.00035,2]
[328006707,1716766361930,-2000.0,0.00035,2]
[328006708,1716766361940,-2000.0,0.00035,2]
[328006709,1716766361949,-2500.0,0.00035,5]
[328006710,1716766361959,-300.0,0.00035014,120]
[328006711,1716766361968,-4351.55479547,0.00035072,2]
[328006712,1716766361978,-441.69,0.000351,6]
[328006713,1716766361987,-583.0,0.00035145,2]
[328006714,1716766361997,-728.0,0.00035145,2]
[328006715,1716766362006,-500.0,0.0003521,10]
[328006716,1716766362016,-200.0,0.0003521,10]
[328006717,1716766362027,-490.0,0.00035218,8]
[328006718,1716766362036,-1000.0,0.00035242,2]
[328006719,1716766362045,-150.0,0.000354,9]
[328006720,1716766362054,-1390.03844273,0.000354,2]
[328006721,1716766362064,-1214.89532928,0.000354,2]
[328006722,1716766362073,-163.75382263,0.000354,2]
[328006723,1716766362084,-150.0,0.000354,9]
[328006724,1716766362093,-150.0,0.000354,8]
[328006725,1716766362102,-323.08380018,0.000354,2]
[328006726,1716766362111,-4138.1529206,0.00035466,4]
[328006727,1716766362121,-300.0,0.00035468,120]
[328006728,1716766362130,-270.45540645,0.00035493,2]
[328006729,1716766362140,-2936.50650373,0.00035493,2]
[328006730,1716766362149,-1085.18673286,0.00035498,4]
[328006731,1716766362158,-1157.94413914,0.00035498,4]
[328006732,1716766362168,-464.20181862,0.00035498,4]
[328006733,1716766362177,-155.0,0.00035498,4]
[328006734,1716766362186,-349.01876411,0.00035498,4]
[328006735,1716766362196,-14326.32236715,0.00035498,4]
[328006736,1716766362205,-476.43224212,0.00035498,4]
[328006737,1716766362215,-472.75798562,0.00035498,4]
[328006738,1716766362224,-155.0,0.00035498,8]
[328006739,1716766362233,-1682.85355417,0.00035498,4]
[328006740,1716766362242,-325.10674615,0.00035498,4]
[328006741,1716766362251,-480.94869717,0.00035498,4]
[328006742,1716766362265,-523.82451147,0.00035498,4]
[328006743,1716766362275,-155.0,0.00035498,4]
[328006744,1716766362284,-3257.68969236,0.00035498,4]
[328006745,1716766362293,-7521.94316228,0.00035498,4]
[328006746,1716766362303,-207.58824107,0.00035498,4]
[328006747,1716766362312,-1381.93423711,0.00035498,4]
[328006748,1716766362321,-769.28,0.00035498,4]
[328006749,1716766362331,-3588.9646414,0.00035499,4]
[328006750,1716766362342,-769.28,0.00035499,4]
[328006751,1716766362352,-769.28,0.00035499,4]
[328006752,1716766362362,-769.28,0.00035499,4]